{"text_format":"2","workbook":"xlsx","n_sheets":14,"sheets":["Instructions and Summary","a. Personnel","b. Fringe","c. Travel","d. Equipment","e. Supplies","f. Contractual","g. Construction","h. Other","i. Indirect","j. Cost Share","SF-424A","SF-424A Cost Categories","SF-424A Minus FFRDC"],"not_rendered":{"charts":0,"images":2,"macros":0,"external_links":0,"defined_names":102,"comments":0,"pivot_tables":0},"unopened":[],"bounds":{"document_bytes":16777216,"sheet_cells":100000,"run_cost":"one","rows_first":2000,"rows_last":500,"rows_between":2000,"halvings":0,"cell_chars":16384,"cell_head_chars":4096},"cells_cut":0,"cells_raw":0,"read":"whole","date_system":"1900"}

{"sheet":"Instructions and Summary","index":0,"n_rows":36,"n_cols":9,"rows_kept":36,"cut":false,"hidden":false,"merged":[[0,2,1,7],[2,1,2,2],[2,3,2,7],[8,0,8,8],[35,0,36,8],[3,1,3,2],[3,3,3,7],[5,0,5,8],[6,0,6,8],[10,0,16,0]]}
["EERE T 540.132 02 Budget Justification (5 BPs) ",null,"Instructions and Summary",{"$nulls":5},"OMB Control Number: 1910-5162"]
[{"$nulls":8},"Expiration Date: 10/31/2021"]
["Award Number:",null,null,"Date of Submission:"]
["Award Recipient:",null,null,"Form submitted by: "]
[{"$nulls":8},"(May be award recipient or sub-recipient)"]
["Please read the instructions on each worksheet tab before starting. If you have any questions, please ask your EERE contact!                                                                                                    Do not modify this template or any cells or formulas!  "]
["1. If using this form for award application, negotiation, or budget revision, fill out the blank white cells in workbook tabs a. through j. with total project costs. If using this form for invoice submission, fill out tabs a. through j. with total costs for just the proposed invoice and fill out tab k. per the instructions on that tab.\n2. Blue colored cells contain instructions, headers, or summary calculations and should not be modified. Only blank white cells should be populated.   \n3. Enter detailed support for the project costs identified for each Category line item within each worksheet tab to autopopulate the summary tab.  \n4. The total budget presented on tabs a. through i. must include both Federal (DOE) and Non-Federal (cost share) portions.\n5. All costs incurred by the preparer's sub-recipients, vendors, and Federal Research and Development Centers (FFRDCs), should be entered only in section f. Contractual. All other sections are for the costs of the preparer only.\n6.  Ensure all entered costs are allowable, allocable, and reasonable in accordance with the administrative requirements prescribed in 2 CFR 200, and the applicable cost principles for each entity type: FAR Part 31 for For-Profit entities; and 2 CFR Part 200 Subpart E - Cost Principles for all other non-federal entities.  \n7. Add rows as needed throughout tabs a. through j. If rows are added, formulas/calculations may need to be adjusted by the preparer. Do not add rows to the Instructions and Summary tab. If your project contains more than five budget periods, consult your EERE contact before adding additional budget period rows or columns. \n8. ALL budget period cost categories are rounded to the nearest dollar.\nBURDEN DISCLOSURE STATEMENT\nPublic reporting burden for this collection of information is estimated to average 3 hours per response, including the time for reviewing instructions, searching existing data sources, gathering and maintaining the data needed, and completing and reviewing the collection of information. Send comments regarding this burden estimate or any other aspect of this collection of information, including suggestions for reducing this burden, to Office of Information Resources Management Policy, Plans, and Oversight, AD-241-2 - GTN, Paperwork Reduction Project (1910-5162), U.S. Department of Energy 1000 Independence Avenue, S.W., Washington, DC 20585; and to the Office of Management and Budget, Paperwork Reduction Project (1910-5162), Washington, DC 20503."]
[]
["SUMMARY OF BUDGET CATEGORY COSTS PROPOSED\nThe values in this summary table are from entries made in subsequent tabs, only blank white cells require data entry"]
["Section A - Budget Summary"]
[null,null,"Federal","Cost Share",null,null,"Total Costs","Cost Share %","Proposed Budget Period Dates"]
[null,"Budget Period 1",{"$f":"G12-D12","v":0},{"$f":"'j. Cost Share'!D17","v":0},null,null,{"$f":"B34","v":0},{"$f":"IF(G12>0,D12/G12,0)","v":0},"Example!!! 01/01/2014 - 12/31/2014"]
[null,"Budget Period 2",{"$f":"G13-D13","v":0},{"$f":"'j. Cost Share'!E17","v":0},null,null,{"$f":"C34","v":0},{"$f":"IF(G13>0,D13/G13,0)","v":0}]
[null,"Budget Period 3",{"$f":"G14-D14","v":0},{"$f":"'j. Cost Share'!F17","v":0},null,null,{"$f":"D34","v":0},0]
[null,"Budget Period 4",{"$f":"G15-D15","v":0},{"$f":"'j. Cost Share'!G17","v":0},null,null,{"$f":"E34","v":0},0]
[null,"Budget Period 5",0,{"$f":"'j. Cost Share'!H17","v":0},null,null,{"$f":"F34","v":0},0]
[null,"Total",{"$f":"SUM(C12:C16)","v":0},{"$f":"SUM(D12:D16)","v":0},null,null,{"$f":"SUM(G12:G16)","v":0},0]
["Section B - Budget Categories"]
["CATEGORY","Budget Period 1","Budget Period 2","Budget Period 3","Budget Period 4","Budget Period 5"," Total Costs","% of Project","Comments (as needed)"]
["a. Personnel",{"$f":"'a. Personnel'!E34","v":0},{"$f":"'a. Personnel'!H34","v":0},{"$f":"'a. Personnel'!K34","v":0},{"$f":"'a. Personnel'!N34","v":0},{"$f":"'a. Personnel'!Q34","v":0},{"$f":"SUM(B20:F20)","v":0},{"$f":"IF(G20>0,G20/G17,0)","v":0}]
["b. Fringe Benefits",{"$f":"'b. Fringe'!D13","v":0},{"$f":"'b. Fringe'!G13","v":0},{"$f":"'b. Fringe'!J13","v":0},{"$f":"'b. Fringe'!M13","v":0},{"$f":"'b. Fringe'!P13","v":0},{"$f":"SUM(B21:F21)","v":0},{"$f":"IF(G21>0,G21/G17,0)","v":0}]
["c. Travel",{"$f":"'c. Travel'!K14","v":0},{"$f":"'c. Travel'!K22","v":0},{"$f":"'c. Travel'!K30","v":0},{"$f":"'c. Travel'!K38","v":0},{"$f":"'c. Travel'!K46","v":0},0,{"$f":"IF(G22>0,G22/G17,0)","v":0}]
["d. Equipment",{"$f":"'d. Equipment'!E14","v":0},{"$f":"'d. Equipment'!E22","v":0},{"$f":"'d. Equipment'!E30","v":0},{"$f":"'d. Equipment'!E38","v":0},{"$f":"'d. Equipment'!E46","v":0},0,{"$f":"IF(G23>0,G23/G17,0)","v":0}]
["e. Supplies",{"$f":"'e. Supplies'!E15","v":0},{"$f":"'e. Supplies'!E25","v":0},{"$f":"'e. Supplies'!E35","v":0},{"$f":"'e. Supplies'!E45","v":0},{"$f":"'e. Supplies'!E55","v":0},0,{"$f":"IF(G24>0,G24/G17,0)","v":0}]
["f. Contractual"]
["Sub-recipient",{"$f":"'f. Contractual'!D13","v":0},{"$f":"'f. Contractual'!E13","v":0},{"$f":"'f. Contractual'!F13","v":0},{"$f":"'f. Contractual'!G13","v":0},{"$f":"'f. Contractual'!H13","v":0},0,{"$f":"IF(G26>0,G26/G17,0)","v":0}]
["Vendor",{"$f":"'f. Contractual'!D22","v":0},{"$f":"'f. Contractual'!E22","v":0},{"$f":"'f. Contractual'!F22","v":0},{"$f":"'f. Contractual'!G22","v":0},{"$f":"'f. Contractual'!H22","v":0},0,{"$f":"IF(G27>0,G27/G17,0)","v":0}]
["FFRDC",{"$f":"'f. Contractual'!D27","v":0},{"$f":"'f. Contractual'!E27","v":0},{"$f":"'f. Contractual'!F27","v":0},{"$f":"'f. Contractual'!G27","v":0},{"$f":"'f. Contractual'!H27","v":0},0,{"$f":"IF(G28>0,G28/G17,0)","v":0}]
["Total Contractual ",{"$f":"SUM(B26:B28)","v":0},{"$f":"SUM(C26:C28)","v":0},{"$f":"SUM(D26:D28)","v":0},{"$f":"SUM(E26:E28)","v":0},0,0,{"$f":"IF(G29>0,G29/G17,0)","v":0}]
["g. Construction",{"$f":"'g. Construction'!C15","v":0},{"$f":"'g. Construction'!C22","v":0},{"$f":"'g. Construction'!C29","v":0},{"$f":"'g. Construction'!C36","v":0},{"$f":"'g. Construction'!C43","v":0},0,{"$f":"IF(G30>0,G30/G17,0)","v":0}]
["h. Other Direct Costs",{"$f":"'h. Other'!C14","v":0},{"$f":"'h. Other'!C22","v":0},{"$f":"'h. Other'!C30","v":0},{"$f":"'h. Other'!C38","v":0},{"$f":"'h. Other'!C46","v":0},0,{"$f":"IF(G31>0,G31/G17,0)","v":0}]
["Total Direct Costs",{"$f":"B20+B21+B22+B23+B24+B29+B30+B31","v":0},{"$f":"C20+C21+C22+C23+C24+C29+C30+C31","v":0},{"$f":"D20+D21+D22+D23+D24+D29+D30+D31","v":0},{"$f":"E20+E21+E22+E23+E24+E29+E30+E31","v":0},0,{"$f":"G20+G21+G22+G23+G24+G29+G30+G31","v":0},{"$f":"IF(G32>0,G32/G17,0)","v":0}]
["i. Indirect Charges",{"$f":"'i. Indirect'!B16","v":0},{"$f":"'i. Indirect'!C16","v":0},{"$f":"'i. Indirect'!D16","v":0},{"$f":"'i. Indirect'!E16","v":0},{"$f":"'i. Indirect'!F16","v":0},0,{"$f":"IF(G33>0,G33/G17,0)","v":0}]
["Total Costs",{"$f":"B32+B33","v":0},{"$f":"C32+C33","v":0},{"$f":"D32+D33","v":0},{"$f":"E32+E33","v":0},0,{"$f":"G32+G33","v":0},{"$f":"H32+H33","v":0}]
[]
["Additional Explanation (as needed):"]

{"sheet":"a. Personnel","index":1,"n_rows":36,"n_cols":20,"rows_kept":36,"cut":false,"hidden":false,"merged":[[1,0,1,19],[5,17,6,17],[0,17,0,19],[5,2,5,4],[5,5,5,7],[5,8,5,10],[0,0,0,1],[35,0,36,19],[5,1,6,1],[2,0,3,19],[34,0,34,3],[5,0,6,0],[5,19,6,19],[5,18,6,18],[5,11,5,13],[5,14,5,16]]}
["Detailed Budget Justification"]
["a. Personnel"]
["INSTRUCTIONS - PLEASE READ!!!\n1. List project costs solely for employees of the entity completing this form.  All personnel costs for subrecipients and vendors must be included under f. Contractual.\n2. All personnel should be identified by position title and not employee name. Enter the amount of time (e.g., hours or % of time) and the base pay rate and the total direct personnel compensation will automatically calculate. Rate basis (e.g., actual salary, labor distribution report, state civil service rates, etc.) must also be identified.\n3. If loaded labor rates are utilized, a description of the costs the loaded rate is comprised of must be included in the Additional Explanation section below. DOE must review all components of the loaded labor rate for reasonableness and unallowable costs (e.g. fee or profit). \n4. If a position and hours are attributed to multiple employees (e.g. Technician working 4000 hours) the number of employees for that position title must be identified.  \n5.  Each budget period is rounded to the nearest dollar."]
[]
[]
["SOPO Task #","Position Title","Budget Period 1",null,null,"Budget Period 2",null,null,"Budget Period 3",null,null,"Budget Period 4",null,null,"Budget Period 5",null,null,"Project Total Hours","Project Total Dollars","Rate Basis"]
[null,null,"Time \n(Hrs)","Pay Rate\n($/Hr)","Total Budget Period 1","Time \n(Hrs)","Pay Rate\n($/Hr)","Total Budget Period 2","Time \n(Hrs)","Pay Rate\n($/Hr)","Total Budget Period 3","Time \n(Hrs)","Pay Rate\n($/Hr)","Total Budget Period 4","Time \n(Hrs)","Pay Rate\n($/Hr)","Total Budget Period 5"]
[1,"Sr. Engineer (EXAMPLE!!!)",2000,85,{"$f":"C8*D8","v":170000},200,50,{"$f":"F8*G8","v":10000},200,50,{"$f":"I8*J8","v":10000},200,50,{"$f":"L8*M8","v":10000},200,50,{"$f":"O8*P8","v":10000},{"$f":"C8+F8+I8","v":2400},{"$f":"E8+H8+K8","v":190000},"Actual Salary"]
[2,"Technicians (2)",4000,20,80000,0,0,0,0,0,0,0,0,0,0,0,0,{"$f":"C9+F9+I9","v":4000},{"$f":"E9+H9+K9","v":80000},"Actual Salary"]
[{"$nulls":4},0,null,null,0,null,null,0,null,null,0,null,null,0,{"$f":"SUM(C10+F10+I10+L10+O10)","v":0},{"$f":"SUM(E10+H10+K10+N10+Q10)","v":0}]
[{"$nulls":4},0,null,null,0,null,null,0,null,null,0,null,null,0,{"$f":"SUM(C11+F11+I11+L11+O11)","v":0},0]
[{"$nulls":4},0,null,null,0,null,null,0,null,null,0,null,null,0,0,0]
[{"$nulls":4},0,null,null,0,null,null,0,null,null,0,null,null,0,0,0]
[{"$nulls":4},0,null,null,0,null,null,0,null,null,0,null,null,0,0,0]
[{"$nulls":4},0,null,null,0,null,null,0,null,null,0,null,null,0,0,0]
[{"$nulls":4},0,null,null,0,null,null,0,null,null,0,null,null,0,0,0]
[{"$nulls":4},0,null,null,0,null,null,0,null,null,0,null,null,0,0,0]
[{"$nulls":4},0,null,null,0,null,null,0,null,null,0,null,null,0,0,0]
[{"$nulls":4},0,null,null,0,null,null,0,null,null,0,null,null,0,0,0]
[{"$nulls":4},0,null,null,0,null,null,0,null,null,0,null,null,0,0,0]
[{"$nulls":4},0,null,null,0,null,null,0,null,null,0,null,null,0,0,0]
[{"$nulls":4},0,null,null,0,null,null,0,null,null,0,null,null,0,0,0]
[{"$nulls":4},0,null,null,0,null,null,0,null,null,0,null,null,0,0,0]
[{"$nulls":4},0,null,null,0,null,null,0,null,null,0,null,null,0,0,0]
[{"$nulls":4},0,null,null,0,null,null,0,null,null,0,null,null,{"$f":"O25*P25","v":0},0,0]
[{"$nulls":4},0,null,null,0,null,null,0,null,null,0,null,null,{"$f":"O26*P26","v":0},0,0]
[{"$nulls":4},0,null,null,0,null,null,0,null,null,0,null,null,0,0,0]
[{"$nulls":4},0,null,null,0,null,null,0,null,null,0,null,null,0,0,0]
[{"$nulls":4},0,null,null,0,null,null,0,null,null,0,null,null,0,0,0]
[{"$nulls":4},0,null,null,0,null,null,0,null,null,0,null,null,0,0,0]
[{"$nulls":4},{"$f":"C31*D31","v":0},null,null,0,null,null,0,null,null,0,null,null,0,0,0]
[{"$nulls":4},{"$f":"C32*D32","v":0},null,null,{"$f":"F32*G32","v":0},null,null,{"$f":"I32*J32","v":0},null,null,{"$f":"L32*M32","v":0},null,null,{"$f":"O32*P32","v":0},0,0]
[{"$nulls":4},{"$f":"C33*D33","v":0},null,null,{"$f":"F33*G33","v":0},null,null,{"$f":"I33*J33","v":0},null,null,{"$f":"L33*M33","v":0},null,null,{"$f":"O33*P33","v":0},0,0]
[null,"Total Personnel Costs",{"$f":"SUM(C10:C33)","v":0},null,{"$f":"SUM(E10:E33)","v":0},{"$f":"SUM(F10:F33)","v":0},null,{"$f":"SUM(H10:H33)","v":0},{"$f":"SUM(I10:I33)","v":0},null,{"$f":"SUM(K10:K33)","v":0},{"$f":"SUM(L10:L33)","v":0},null,{"$f":"SUM(N10:N33)","v":0},{"$f":"SUM(O10:O33)","v":0},null,{"$f":"SUM(Q10:Q33)","v":0},{"$f":"SUM(C34+F34+I34+L34+O34)","v":0},{"$f":"E34 + H34+K34+N34+Q34","v":0}]
[]
["Additional Explanation (as needed):"]

{"sheet":"b. Fringe","index":2,"n_rows":21,"n_cols":17,"rows_kept":21,"cut":false,"hidden":false,"merged":[[0,0,0,9],[1,0,1,16],[19,0,19,16],[20,0,20,16],[2,0,2,16],[15,0,18,16],[14,0,14,16],[4,4,4,6],[4,7,4,9],[4,1,4,3],[4,10,4,12],[4,13,4,15]]}
["Detailed Budget Justification "]
["b. Fringe Benefits"]
["INSTRUCTIONS - PLEASE READ!!!\n1. Fill out the table below by position title. If all employees receive the same fringe benefits, you can show \"Total Personnel\" in the Labor Type column instead of listing out all position titles.   \n2. The rates and how they are applied should not be averaged to get one fringe cost percentage. Complex calculations should be described/provided in the Additional Explanation section below. \n3. The fringe benefit rates should be applied to all positions, regardless of whether those funds will be supported by Federal Share or Recipient Cost Share.\n4.  Each budget period is rounded to the nearest dollar."]
[]
["Labor Type","Budget Period 1",null,null,"Budget Period 2",null,null,"Budget Period 3",null,null,"Budget Period 4",null,null,"Budget Period 5",null,null,"Total Project "]
[null,"Personnel Costs","Rate","Total","Personnel Costs","Rate","Total","Personnel Costs","Rate","Total","Personnel Costs","Rate","Total","Personnel Costs","Rate","Total"]
["EXAMPLE!!! Sr. Engineer",170000,0.2,{"$f":"B7*C7","v":34000},10000,0.2,{"$f":"E7*F7","v":2000},10000,0.2,{"$f":"H7*I7","v":2000},10000,0.2,{"$f":"K7*L7","v":2000},10000,0.2,{"$f":"N7*O7","v":2000},{"$f":"D7+G7+J7","v":38000}]
[null,null,null,{"$f":"C8*B8","v":0},null,null,0,null,null,0,null,null,0,null,null,0,{"$f":"SUM(D8+G8+J8+M8+P8)","v":0}]
[null,null,null,{"$f":"C9*B9","v":0},null,null,0,null,null,0,null,null,0,null,null,0,0]
[null,null,null,{"$f":"C10*B10","v":0},null,null,0,null,null,0,null,null,0,null,null,0,0]
[null,null,null,{"$f":"C11*B11","v":0},null,null,0,null,null,0,null,null,0,null,null,0,0]
[null,null,null,{"$f":"C12*B12","v":0},null,null,0,null,null,0,null,null,0,null,null,0,0]
["Total:",{"$f":"SUM(B8:B12)","v":0},null,{"$f":"SUM(D8:D12)","v":0},{"$f":"SUM(E8:E12)","v":0},null,{"$f":"SUM(G8:G12)","v":0},{"$f":"SUM(H8:H12)","v":0},null,{"$f":"SUM(J8:J12)","v":0},{"$f":"SUM(K8:K12)","v":0},null,{"$f":"SUM(M8:M12)","v":0},{"$f":"SUM(N8:N12)","v":0},null,{"$f":"SUM(P8:P12)","v":0},0]
[]
["A federally approved fringe benefit rate agreement, or a proposed rate supported and agreed upon by DOE for estimating purposes is required at the time of award negotiation if reimbursement for fringe benefits is requested.  Please check (X) one of the options below and provide the requested information if not previously submitted."]
["______ A fringe benefit rate has been negotiated with, or approved by, a federal government agency. A copy of the latest rate agreement is/was included with the project application.*\n\n______ There is not a current federally approved rate agreement negotiated and available.**\n\n*Unless the organization has submitted an indirect rate proposal which encompasses the fringe pool of costs, please provide the organization’s benefit package and/or a list of the components/elements that comprise the fringe pool and the cost or percentage of each component/element allocated to the labor costs identified in the Budget Justification (Form EERE 335.1).\n\n**When this option is checked, the entity preparing this form shall submit an indirect rate proposal in the format provided in the Sample Rate Proposal at http://www1.eere.energy.gov/financing/resources.html, or a format that provides the same level of information and which will support the rates being proposed for use in the performance of the proposed project. "]
[]
[]
[]
[]
["Additional Explanation (as necessary): Please use this box (or an attachment) to list the elements that comprise your fringe benefits and how they are applied to your base (e.g. Personnel) to arrive at your fringe benefit rate."]

{"sheet":"c. Travel","index":3,"n_rows":49,"n_cols":12,"rows_kept":49,"cut":false,"hidden":false,"merged":[[2,0,2,11],[48,0,49,11],[1,0,1,11],[0,0,0,1],[5,2,5,11],[14,2,14,11],[22,2,22,11],[30,2,30,11],[38,2,38,11]]}
["Detailed Budget Justification "]
["c. Travel"]
["INSTRUCTIONS - PLEASE READ!!!\n1.  Identify Foreign and Domestic Travel as separate items. Examples of Purpose of Travel are subrecipient site visits, DOE meetings, project mgmt. meetings, etc. Examples of Basis for Estimating Costs are past trips, travel quotes, GSA rates, etc.   \n2.  All listed travel must be necessary for performance of the Statement of Project Objectives.                                                                                                                                                                                                                                                                 \n3. Only travel that is directly associated with this award should be included as a direct travel cost to the award.                                                                                                                                                                                                                                                                                                                                                                                4. Federal travel regulations are contained within the applicable cost principles for all entity types.                                                                                                                                                                                                                                                                                             5. Travel costs should remain consistent with travel costs incurred by an organization during normal business operations as a result of the organizations written travel policy. In absence of a written travel policy, organizations must follow the regulations prescribed by the General Services Administration. \n6. Columns E, F, G, H, I, J, and K are per trip.                                                                                                                                                                                                                                                                                                                                                                                                                                                                                                     7. The number of days is inclusive of day of departure and day of return.                                                                                                                                                                                                                                                                                               8. Recipients should enter City and State (or City and Country for International travel) in the Depart from and Destination fields.                                                                                                                                                                                              9. Each budget period is rounded to the nearest dollar."]
[]
["SOPO Task #","Purpose of Travel","Depart From","Destination","No. of Days","No. of Travelers","Lodging per Traveler","Flight per Traveler","Vehicle per Traveler","Per Diem Per Traveler","Cost per Trip","Basis for Estimating Costs"]
[null,"Domestic Travel","                                                             Budget Period 1"]
[1,"EXAMPLE!!!  Visit to PV manufacturer",null,null,2,2,250,500,100,160,{"$f":"SUM(G7:J7)*F7","v":2020},"Current GSA rates"]
[{"$nulls":10},{"$f":"SUM(G8:J8)*F8","v":0}]
[{"$nulls":10},{"$f":"SUM(G9:J9)*F9","v":0}]
[{"$nulls":10},{"$f":"SUM(G10:J10)*F10","v":0}]
[{"$nulls":10},{"$f":"SUM(G11:J11)*F11","v":0}]
[null,"International Travel"]
[{"$nulls":10},{"$f":"SUM(G13:J13)*F13","v":0}]
[null,"Budget Period 1 Total",{"$nulls":8},{"$f":"SUM(K8:K13)","v":0}]
[null,"Domestic Travel","                                                             Budget Period 2"]
[{"$nulls":10},{"$f":"SUM(G16:J16)*F16","v":0}]
[{"$nulls":10},{"$f":"SUM(G17:J17)*F17","v":0}]
[{"$nulls":10},{"$f":"SUM(G18:J18)*F18","v":0}]
[{"$nulls":10},{"$f":"SUM(G19:J19)*F19","v":0}]
[null,"International Travel"]
[{"$nulls":10},{"$f":"SUM(G21:J21)*F21","v":0}]
[null,"Budget Period 2 Total",{"$nulls":8},{"$f":"SUM(K16:K21)","v":0}]
[null,"Domestic Travel","                                                              Budget Period 3"]
[{"$nulls":10},{"$f":"SUM(G24:J24)*F24","v":0}]
[{"$nulls":10},{"$f":"SUM(G25:J25)*F25","v":0}]
[{"$nulls":10},{"$f":"SUM(G26:J26)*F26","v":0}]
[{"$nulls":10},{"$f":"SUM(G27:J27)*F27","v":0}]
[null,"International Travel"]
[{"$nulls":10},{"$f":"SUM(G29:J29)*F29","v":0}]
[null,"Budget Period 3 Total",{"$nulls":8},{"$f":"SUM(K24:K29)","v":0}]
[null,"Domestic Travel","                                                              Budget Period 4"]
[{"$nulls":10},{"$f":"SUM(G32:J32)*F32","v":0}]
[{"$nulls":10},{"$f":"SUM(G33:J33)*F33","v":0}]
[{"$nulls":10},{"$f":"SUM(G34:J34)*F34","v":0}]
[{"$nulls":10},{"$f":"SUM(G35:J35)*F35","v":0}]
[null,"International Travel"]
[{"$nulls":10},{"$f":"SUM(G37:J37)*F37","v":0}]
[null,"Budget Period 4 Total",{"$nulls":8},{"$f":"SUM(K32:K37)","v":0}]
[null,"Domestic Travel","                                                              Budget Period 5"]
[{"$nulls":10},{"$f":"SUM(G40:J40)*F40","v":0}]
[{"$nulls":10},{"$f":"SUM(G41:J41)*F41","v":0}]
[{"$nulls":10},{"$f":"SUM(G42:J42)*F42","v":0}]
[{"$nulls":10},{"$f":"SUM(G43:J43)*F43","v":0}]
[null,"International Travel"]
[{"$nulls":10},{"$f":"SUM(G45:J45)*F45","v":0}]
[null,"Budget Period 5 Total",{"$nulls":8},{"$f":"SUM(K40:K45)","v":0}]
[null,"PROJECT TOTAL",{"$nulls":8},{"$f":"K14+K22+K30+K38+K46","v":0}]
[]
["Additional Explanation (as needed):"]

{"sheet":"d. Equipment","index":4,"n_rows":49,"n_cols":7,"rows_kept":49,"cut":false,"hidden":false,"merged":[[1,0,1,6],[0,0,0,1],[2,0,2,6],[48,0,49,6],[22,0,22,6],[14,0,14,6],[5,0,5,6],[30,0,30,6],[38,0,38,6]]}
["Detailed Budget Justification"]
["d. Equipment"]
["INSTRUCTIONS - PLEASE READ!!!\n1. Equipment is generally defined as an item with an acquisition cost greater than $5,000 and a useful life expectancy of more than one year. Please refer to the applicable Federal regulations in 2 CFR 200 for specific equipment definitions and treatment. \n2. List all equipment below, providing a basis of cost (e.g. vendor quotes, catalog prices, prior invoices, etc.). Briefly justify items as they apply to the Statement of Project Objectives. If it is existing equipment, provide logical support for the estimated value shown. \n3. During award negotiations, provide a vendor quote for all equipment items over $50,000 in price. If the vendor quote is not an exact price match, provide an explanation in the additional explanation section below. If a vendor quote is not practical, such as for a piece of equipment that is purpose-built, first of its kind, or otherwise not available off the shelf, provide a detailed engineering estimate for how the cost estimate was derived.\n4.  Each budget period is rounded to the nearest dollar."]
[]
["SOPO Task #","Equipment Item","Qty","Unit Cost         ","Total Cost             ","Basis of Cost","Justification of need"]
["Budget Period 1"]
["3,4,5","EXAMPLE!!!   Thermal shock chamber",2,70000,{"$f":"C7*D7","v":140000},"Vendor Quote - Attached","Reliability testing of PV modules- Task 4.3"]
[{"$nulls":4},{"$f":"C8*D8","v":0}]
[{"$nulls":4},{"$f":"C9*D9","v":0}]
[{"$nulls":4},{"$f":"C10*D10","v":0}]
[{"$nulls":4},{"$f":"C11*D11","v":0}]
[{"$nulls":4},{"$f":"C12*D12","v":0}]
[{"$nulls":4},{"$f":"C13*D13","v":0}]
[null,"Budget Period 1 Total",null,null,{"$f":"SUM(E8:E13)","v":0}]
["Budget Period 2"]
[{"$nulls":4},{"$f":"C16*D16","v":0}]
[{"$nulls":4},0]
[{"$nulls":4},0]
[{"$nulls":4},0]
[{"$nulls":4},0]
[{"$nulls":4},0]
[null,"Budget Period 2 Total",null,null,{"$f":"SUM(E16:E21)","v":0}]
["Budget Period 3"]
[{"$nulls":4},{"$f":"C24*D24","v":0}]
[{"$nulls":4},0]
[{"$nulls":4},0]
[{"$nulls":4},0]
[{"$nulls":4},0]
[{"$nulls":4},0]
[null,"Budget Period 3 Total",null,null,{"$f":"SUM(E24:E29)","v":0}]
["Budget Period 4"]
[{"$nulls":4},{"$f":"C32*D32","v":0}]
[{"$nulls":4},0]
[{"$nulls":4},0]
[{"$nulls":4},0]
[{"$nulls":4},0]
[{"$nulls":4},0]
[null,"Budget Period 4 Total",null,null,{"$f":"SUM(E32:E37)","v":0}]
["Budget Period 5"]
[{"$nulls":4},{"$f":"C40*D40","v":0}]
[{"$nulls":4},0]
[{"$nulls":4},0]
[{"$nulls":4},0]
[{"$nulls":4},0]
[{"$nulls":4},0]
[null,"Budget Period 5 Total",null,null,{"$f":"SUM(E40:E45)","v":0}]
[null,"PROJECT TOTAL",null,null,{"$f":"E14+E22+E30+E38+E46","v":0}]
[]
["Additional Explanation (as needed):"]

{"sheet":"e. Supplies","index":5,"n_rows":58,"n_cols":7,"rows_kept":58,"cut":false,"hidden":false,"merged":[[0,0,0,1],[2,0,2,6],[57,0,58,6],[5,0,5,6],[1,0,1,6],[15,0,15,6],[25,0,25,6],[35,0,35,6],[45,0,45,6]]}
["Detailed Budget Justification "]
["e. Supplies"]
["INSTRUCTIONS - PLEASE READ!!!\n1. Supplies are generally defined as an item with an acquisition cost of $5,000 or less and a useful life expectancy of less than one year.  Supplies are generally consumed during the project performance. Please refer to the applicable Federal regulations in 2 CFR 200 for specific supplies definitions and treatment. \n2. List all proposed supplies below, providing a basis of costs (e.g. vendor quotes, catalog prices, prior invoices, etc.). Briefly justify the need for the Supplies as they apply to the Statement of Project Objectives. Note that Supply items must be direct costs to the project at this budget category, and not duplicative of supply costs included in the indirect pool that is the basis of the indirect rate applied for this project.\n3. Multiple supply items valued at $5,000 or less used to assemble an equipment item with a value greater than $5,000 with a useful life of more than one year should be included on the equipment tab. If supply items and costs are ambiguous in nature, contact your DOE representative for proper categorization.  \n4. Add rows as needed. If rows are added, formulas/calculations may need to be adjusted by the preparer. \n5.  Each budget period is rounded to the nearest dollar."]
[]
["SOPO Task #","General Category of Supplies","Qty","Unit Cost         ","Total Cost             ","Basis of Cost","Justification of need"]
["Budget Period 1"]
["4,6","EXAMPLE!!!  Wireless DAS components",10,360,3600,"Catalog price","For Alpha prototype - Task 2.4"]
[{"$nulls":4},{"$f":"C8*D8","v":0}]
[{"$nulls":4},0]
[{"$nulls":4},0]
[{"$nulls":4},0]
[{"$nulls":4},0]
[{"$nulls":4},0]
[{"$nulls":4},0]
[null,"Budget Period 1 Total",null,null,{"$f":"SUM(E8:E14)","v":0}]
["Budget Period 2"]
[{"$nulls":4},{"$f":"C17*D17","v":0}]
[{"$nulls":4},0]
[{"$nulls":4},0]
[{"$nulls":4},0]
[{"$nulls":4},0]
[{"$nulls":4},0]
[{"$nulls":4},0]
[{"$nulls":4},0]
[null,"Budget Period 2 Total",null,null,{"$f":"SUM(E17:E24)","v":0}]
["Budget Period 3"]
[{"$nulls":4},{"$f":"C27*D27","v":0}]
[{"$nulls":4},0]
[{"$nulls":4},0]
[{"$nulls":4},0]
[{"$nulls":4},0]
[{"$nulls":4},0]
[{"$nulls":4},0]
[{"$nulls":4},0]
[null,"Budget Period 3 Total",null,null,{"$f":"SUM(E27:E34)","v":0}]
["Budget Period 4"]
[{"$nulls":4},{"$f":"C37*D37","v":0}]
[{"$nulls":4},0]
[{"$nulls":4},0]
[{"$nulls":4},0]
[{"$nulls":4},0]
[{"$nulls":4},0]
[{"$nulls":4},0]
[{"$nulls":4},0]
[null,"Budget Period 4 Total",null,null,{"$f":"SUM(E37:E44)","v":0}]
["Budget Period 5"]
[{"$nulls":4},{"$f":"C47*D47","v":0}]
[{"$nulls":4},0]
[{"$nulls":4},0]
[{"$nulls":4},0]
[{"$nulls":4},0]
[{"$nulls":4},0]
[{"$nulls":4},0]
[{"$nulls":4},0]
[null,"Budget Period 5 Total",null,null,{"$f":"SUM(E47:E54)","v":0}]
[null,"PROJECT TOTAL",null,null,{"$f":"E35+E25+E15+E45+E55","v":0}]
[]
["Additional Explanation (as needed):"]

{"sheet":"f. Contractual","index":6,"n_rows":31,"n_cols":9,"rows_kept":31,"cut":false,"hidden":false,"merged":[[0,4,0,8],[0,0,0,1],[1,0,1,8],[2,0,2,8],[30,0,31,8]]}
["Detailed Budget Justification "]
["f. Contractual"]
["INSTRUCTIONS - PLEASE READ!!!\n1. The entity completing this form must provide all costs related to sub-recipients, vendors, and FFRDC partners in the applicable boxes below.  \n2. Sub-recipients (partners, sub-awardees): Subrecipients shall submit a Budget Justification describing all project costs and calculations when their total proposed budget exceeds either (1) $250,000 or (2) 25% of total award costs. These sub-recipient forms may be completed by either the sub-recipients themselves or by the preparer of this form.  The budget totals on the sub-recipient's forms must match the sub-recipient entries below. A subrecipient is a legal entity to which a subaward is made, who has performance measured against whether the objectives of the Federal program are met, is responsible for programmatic decision making, must adhere to applicable Federal program compliance requirements, and uses the Federal funds to carry out a program of the organization. All characteristics may not be present and judgment must be used to determine subrecipient vs. vendor status. \n3. Vendors (including contractors): List all vendors and contractors supplying commercial supplies or services used to support the project. For each Vendor cost with total project costs of $250,000 or more, a Vendor quote must be provided. A vendor is a legal entity contracted to provide goods and services within normal business operations, provides similar goods or services to many different purchasers, operates in a competitive environment, provides goods or services that are ancillary to the operation of the Federal program, and is not subject to compliance requirements of the Federal program. All characteristics may not be present and judgment must be used to determine subrecipient vs. vendor status. \n4. Federal Funded Research and Development Centers (FFRDCs): FFRDCs must submit a signed Field Work Proposal during award application. The award recipient may allow the FFRDC to provide this information directly to DOE, however project costs must also be provided below.\n5.  Each budget period is rounded to the nearest dollar."]
[]
["SOPO Task #","Sub-Recipient\nName/Organization","Purpose and Basis of Cost","Budget Period 1","Budget Period 2","Budget Period 3","Budget Period 4","Budget Period 5","Project Total"]
["2,4","EXAMPLE!!!  XYZ Corp.","Partner to develop optimal lens for Gen 2 product. Cost estimate based on personnel hours.",48000,32000,16000,null,null,{"$f":"SUM(D6:F6)","v":96000}]
[{"$nulls":8},{"$f":"SUM(D7:H7)","v":0}]
[{"$nulls":8},0]
[{"$nulls":8},0]
[{"$nulls":8},0]
[{"$nulls":8},0]
[{"$nulls":8},0]
[null,null,"Sub-total",{"$f":"SUM(D7:D12)","v":0},0,0,0,0,0]
[]
["SOPO Task #","Vendor \nName/Organization","Purpose and Basis of Cost","Budget Period 1","Budget Period 2","Budget Period 3","Budget Period 4","Budget Period 5","Project Total"]
[6,"EXAMPLE!!!  ABC Corp.","Vendor for developing robotics to perform lens inspection. Estimate provided by vendor.",32900,86500,null,null,null,{"$f":"SUM(D16:F16)","v":119400}]
[{"$nulls":8},{"$f":"SUM(D17:H17)","v":0}]
[{"$nulls":8},{"$f":"SUM(D18:H18)","v":0}]
[{"$nulls":8},{"$f":"SUM(D19:H19)","v":0}]
[{"$nulls":8},{"$f":"SUM(D20:H20)","v":0}]
[{"$nulls":8},{"$f":"SUM(D21:H21)","v":0}]
[null,null,"Sub-total",{"$f":"SUM(D17:D21)","v":0},0,0,0,0,0]
[]
["SOPO Task #","FFRDC\nName/Organization","Purpose and Basis of Cost","Budget Period 1","Budget Period 2","Budget Period 3","Budget Period 4","Budget Period 5","Project Total"]
[{"$nulls":8},{"$f":"SUM(D25:H25)","v":0}]
[{"$nulls":8},{"$f":"SUM(D26:H26)","v":0}]
[null,null,"Sub-total",{"$f":"SUM(D25:D26)","v":0},{"$f":"SUM(E25:E26)","v":0},{"$f":"SUM(F25:F26)","v":0},{"$f":"SUM(G25:G26)","v":0},{"$f":"SUM(H25:H26)","v":0},{"$f":"SUM(D27:H27)","v":0}]
[]
[null,"Total Contractual",null,{"$f":"D13+D22+D27","v":0},0,0,0,0,0]
[]
["Additional Explanation (as needed):"]

{"sheet":"g. Construction","index":7,"n_rows":46,"n_cols":5,"rows_kept":46,"cut":false,"hidden":false,"merged":[[0,0,0,1],[1,0,1,4],[2,0,2,4],[4,0,4,4],[45,0,46,4],[7,0,7,4],[15,0,15,4],[36,0,36,4],[22,0,22,4],[29,0,29,4]]}
["Detailed Budget Justification"]
["g. Construction"]
["PLEASE READ!!!\n1. Construction, for the purpose of budgeting, is defined as all types of work done on a particular building, including erecting, altering, or remodeling. Construction conducted by the award recipient is entered on this page. Any construction work that is performed by a vendor or subrecipient should be entered under f. Contractual.\n2. List all proposed construction below, providing a basis of cost such as engineering estimates, prior construction, etc., and briefly justify its need as it applies to the Statement of Project Objectives.\n3.  Each budget period is rounded to the nearest dollar."]
[]
["Overall description of construction activities: Example Only!!! - Build wind turbine platform"]
[]
["SOPO Task #","General Description","Cost             ","Basis of Cost","Justification of need"]
["Budget Period 1"]
[3,"EXAMPLE ONLY!!! Three days of excavation for platform site",28000,"Engineering estimate","Site must be prepared for construction of platform."]
[]
[]
[]
[]
[]
[null,"Budget Period 1 Total",{"$f":"SUM(C10:C14)","v":0}]
["Budget Period 2"]
[]
[]
[]
[]
[]
[null,"Budget Period 2 Total",{"$f":"SUM(C17:C21)","v":0}]
["Budget Period 3"]
[]
[]
[]
[]
[]
[null,"Budget Period 3 Total",{"$f":"SUM(C24:C28)","v":0}]
["Budget Period 4"]
[]
[]
[]
[]
[]
[null,"Budget Period 4 Total",{"$f":"SUM(C31:C35)","v":0}]
["Budget Period 5"]
[]
[]
[]
[]
[]
[null,"Budget Period 5 Total",{"$f":"SUM(C38:C42)","v":0}]
[null,"PROJECT TOTAL",{"$f":"(C15+C22+C29+C36+C43)","v":0}]
[]
["Additional Explanation (as needed):"]

{"sheet":"h. Other","index":8,"n_rows":49,"n_cols":5,"rows_kept":49,"cut":false,"hidden":false,"merged":[[0,0,0,1],[1,0,1,4],[48,0,49,4],[2,0,2,4],[5,0,5,4],[22,1,22,4],[14,1,14,4],[30,1,30,4],[38,1,38,4]]}
["Detailed Budget Justification"]
["h. Other Direct Costs"]
["INSTRUCTIONS - PLEASE READ!!!\n1. Other direct costs are direct cost items required for the project which do not fit clearly into other categories.  These direct costs must not be included in the indirect costs (for which the indirect rate is being applied for this project).  Examples are: tuition, printing costs, etc. which can be directly charged to the project and are not duplicated in indirect costs (overhead costs).\n2. Basis of cost are items such as vendor quotes, prior purchases of similar or like items, published price list, etc.\n3.  Each budget period is rounded to the nearest dollar."]
[]
["SOPO Task #","General Description and SOPO Task #"," Cost             ","Basis of Cost","Justification of need"]
["Budget Period 1"]
[5,"EXAMPLE!!!  Grad student tuition - tasks 1-3",16000,"Established UCD costs","Support of graduate students working on project "]
[]
[]
[]
[]
[]
[]
[null,"Budget Period 1 Total",{"$f":"SUM(C8:C13)","v":0}]
[null,"Budget Period 2"]
[]
[]
[]
[]
[]
[]
[null,"Budget Period 2 Total",{"$f":"SUM(C16:C21)","v":0}]
[null,"Budget Period 3"]
[]
[]
[]
[]
[]
[]
[null,"Budget Period 3 Total",{"$f":"SUM(C24:C29)","v":0}]
[null,"Budget Period 4"]
[]
[]
[]
[]
[]
[]
[null,"Budget Period 4 Total",{"$f":"SUM(C32:C37)","v":0}]
[null,"Budget Period 5"]
[]
[]
[]
[]
[]
[]
[null,"Budget Period 5 Total",{"$f":"SUM(C40:C45)","v":0}]
[null,"PROJECT TOTAL",{"$f":"C30+C22+C14+C38+C46","v":0}]
[]
["Additional Explanation (as needed):"]

{"sheet":"i. Indirect","index":9,"n_rows":23,"n_cols":8,"rows_kept":23,"cut":false,"hidden":false,"merged":[[15,7,15,8],[13,7,13,8],[14,7,14,8],[1,0,1,8],[2,0,2,8],[4,7,4,8],[5,7,5,8],[0,7,0,8],[22,0,24,8],[0,0,0,3],[7,7,7,8],[8,7,8,8],[9,7,9,8],[11,7,11,8],[10,7,10,8],[20,0,20,8],[17,0,17,8],[12,7,12,8],[6,7,6,8],[18,0,18,8]]}
["Detailed Budget Justification "]
["i. Indirect Costs"]
["INSTRUCTIONS - PLEASE READ!!!\n1. Fill out the table below to indicate how your indirect costs are calculated. Use the box below to provide additional explanation regarding your indirect rate calculation.  \n2. The rates and how they are applied should not be averaged to get one indirect cost percentage. Complex calculations or rates that do not do not correspond to the below categories should be described/provided in the Additional Explanation section below. If questions exist, consult with your DOE contact before filling out this section. \n3. The indirect rate should be applied to both the Federal Share and Recipient Cost Share.\n4.  Each budget period is rounded to the nearest dollar."]
[]
[null,"Budget Period 1","Budget Period 2","Budget Period 3","Budget Period 4","Budget Period 5","Total","Explanation of BASE "]
["Provide ONLY Applicable Rates:"]
["Overhead Rate",0,0,0,0,0]
["General & Administrative (G&A)",0,0,0,0,0]
["FCCM Rate, if applicable",0,0,0,0,0]
["OTHER Indirect Rate",0,0,0,0,0]
["Indirect Costs (As Applicable):"]
["Overhead Costs",{"$nulls":5},{"$f":"SUM(B12:F12)","v":0}]
["G&A Costs",{"$nulls":5},{"$f":"SUM(B13:F13)","v":0}]
["FCCM Costs, if applicable",{"$nulls":5},{"$f":"SUM(B14:F14)","v":0}]
[" OTHER Indirect Costs",{"$nulls":5},{"$f":"SUM(B15:F15)","v":0}]
["Total indirect costs requested:",{"$f":"SUM(B12:B15)","v":0},{"$f":"SUM(C12:C15)","v":0},{"$f":"SUM(D12:D15)","v":0},{"$f":"SUM(E12:E15)","v":0},{"$f":"SUM(F12:F15)","v":0},{"$f":"SUM(B16:F16)","v":0}]
[]
["A federally approved indirect rate agreement, or rate proposed (supported and agreed upon by DOE for estimating purposes) is required if reimbursement of indirect costs is requested.  Please check (X) one of the options below and provide the requested information if it has not already been provided as requested, or has changed.  "]
["______ An  indirect rate has been approved or negotiated with a federal government agency.  A  copy of the latest rate agreement is included with this application, and will be provided electronically to the Contracting Officer for this project.\n\n______ There is not a current, federally approved rate agreement negotiated and available*.  \n\n*When this option is checked, the entity preparing this form shall submit an indirect rate proposal in the format provided by your DOE contact, or a format that provides the same level of information and which will support the rates being proposed for use in performance of the proposed project.  Additionally, any non-Federal entity that has never received a negotiated indirect cost rate, except for those non-Federal entities described in Appendix VII to Part 200—States and Local Government and Indian Tribe Indirect Cost Proposals, paragraph D.1.b, may elect to charge a de minimis rate of 10% of modified total direct costs (MTDC) which may be used indefinitely.As described in §200.403 Factors affecting allowability of costs, costs must be consistently charged as either indirect or direct costs, but may not be double charged or inconsistently charged as both. If chosen, this methodology once elected must be used consistently for all Federal awards until such time as a non-Federal entity chooses to negotiate for a rate, which the non-Federal entity may apply to do at any time.  "]
[]
["You must provide an explanation (below or in a separate attachment) and show how your indirect cost rate was applied to this budget in order to come up with the indirect costs shown."]
[]
["Additional Explanation (as needed): *IMPORTANT:  Please use this box (or an attachment) to further explain how your total indirect costs were calculated.  If the total indirect costs are a cumulative amount of more than one calculation or rate application, the explanation and calculations should identify all rates used, along with the base they were applied to (and how the base was derived), and a total for each (along with grand total).  "]

{"sheet":"j. Cost Share","index":10,"n_rows":23,"n_cols":9,"rows_kept":23,"cut":false,"hidden":false,"merged":[[22,0,23,8],[1,0,1,8],[0,0,0,2],[2,0,2,8],[19,4,19,5],[20,3,20,5],[20,0,20,1],[0,4,0,8]]}
["Detailed Budget Justification"]
["Cost Share"]
["PLEASE READ!!!\n1. A detailed presentation of the cash or cash value of all cost share proposed must be provided in the table below. All items in the chart below must be identified within the applicable cost category tabs a. through i. in addition to the detailed presentation of the cash or cash value of all cost share proposed provided in the table below. Identify the source organization & amount of each cost share item proposed in the award. \n2. Cash Cost Share - encompasses all contributions to the project made by the recipient, subrecipient, or third party (an entity that does not have a role in performing the scope of work) for costs incurred and paid for during the project. This includes when an organization pays for personnel, supplies, equipment, etc. for their own company with organizational resources. If the item or service is reimbursed for, it is cash cost share. All cost share items must be necessary to the performance of the project. Vendors may not provide cost share. Any partial donation of goods or services is considered a discount and is not allowable.  \n3. In Kind Cost Share - encompasses all contributions to the project made by the recipient, subrecipient, or third party (an entity that does not have a role in performing the scope of work) where a value of the contribution can be readily determined, verified and justified but where no actual cash is transacted in securing the good or service comprising the contribution. In Kind cost share items include volunteer personnel hours, the donation of space or use of equipment, etc. The cash value and calculations thereof for all In Kind cost share items must be justified and explained in the Cost Share Item section below. All cost share items must be necessary to the performance of the project. If questions exist, consult your DOE contact before filling out In Kind cost share in this section. Vendors may not provide cost share.  Any partial donation of goods or services is considered a discount and is not allowable.  \n4. Funds from other Federal sources MAY NOT be counted as cost share. This prohibition includes FFRDC sub-recipients. Non-Federal sources include any source not originally derived from Federal funds. Cost sharing commitment letters from subrecipients and third parties must be provided with the original application.\n5. Fee or profit, including foregone fee or profit, are not allowable as project costs (including cost share) under any resulting award. The project may only incur those costs that are allowable and allocable to the project (including cost share) as determined in accordance with the applicable cost principles prescribed in FAR Part 31 for For-Profit entities and 2 CFR Part 200 Subpart E - Cost Principles for all other non-federal entities.\n6. NOTE: A Recipient who elects to employ the 10% de minimis Indirect Cost rate cannot claim the resulting indirect costs as a Cost Share contribution.                                                                                                              7. NOTE: A Recipient cannot claim \"unrecovered indirect costs\" as a Cost Share contribution, without prior approval.                                                                                                                                                                                                                                                                                                                        8. Each budget period is rounded to the nearest dollar. "]
[]
["Organization/Source                 ","Type (Cash or In Kind) ","Cost Share Item ","Budget Period 1","Budget Period 2","Budget Period 3","Budget Period 4","Budget Period 5","Total Project Cost Share"]
["ABC Company\nEXAMPLE!!!","Cash","Project partner ABC Company will provide 20 PV modules for product development at the price of $680 per module",13600,{"$nulls":4},{"$f":"SUM(D6:F6)","v":13600}]
[{"$nulls":8},{"$f":"SUM(D7:H7)","v":0}]
[{"$nulls":8},0]
[{"$nulls":8},0]
[{"$nulls":8},0]
[{"$nulls":8},0]
[{"$nulls":8},0]
[{"$nulls":8},0]
[{"$nulls":8},0]
[{"$nulls":8},0]
[{"$nulls":8},0]
[null,null,"Totals",{"$f":"SUM(D7:D16)","v":0},0,0,0,0,0]
[]
[null,null,"Cost Share Percentage per Budget Period",{"$f":"IF(D17>0,D17/'Instructions and Summary'!B34,0)","v":0},{"$f":"IF(E17>0,E17/'Instructions and Summary'!C34,0)","v":0},{"$f":"IF(F17>0,F17/'Instructions and Summary'!D34,0)","v":0},{"$f":"IF(G17>0,G17/'Instructions and Summary'!E34,0)","v":0},{"$f":"IF(H17>0,H17/'Instructions and Summary'!F34,0)","v":0}]
[]
["Total Project Cost:  ",null,{"$f":"'Instructions and Summary'!G34","v":0},"Cost Share Percent of Award:",{"$nulls":4},{"$f":"IF(C21>0,I17/C21,0)","v":0}]
[]
["Additional Explanation (as needed):"]

{"sheet":"SF-424A","index":11,"n_rows":63,"n_cols":8,"rows_kept":63,"cut":false,"hidden":true,"merged":[[62,2,62,6],[64,0,101,7],[103,0,144,7],[0,2,0,3],[0,5,0,6],[58,0,58,7],[59,0,59,7],[60,2,60,6],[61,0,61,1],[55,0,55,3],[55,4,55,7],[56,2,56,7],[57,0,57,7],[53,0,53,2],[53,3,53,7],[54,2,54,3],[54,5,54,7],[49,1,49,3],[50,1,50,3],[51,1,51,3],[52,1,52,3],[45,4,45,7],[46,0,47,3],[46,4,46,7],[48,1,48,3],[42,1,42,2],[43,1,43,2],[44,1,44,2],[45,0,45,3],[39,1,39,3],[40,0,40,2],[40,3,40,7],[41,0,41,2],[35,1,35,3],[36,1,36,3],[37,1,37,3],[38,1,38,3],[31,0,31,7],[33,0,33,2],[33,3,33,7],[34,1,34,3],[27,1,27,2],[30,0,30,1],[30,2,30,5],[30,6,30,7],[23,1,23,2],[24,1,24,2],[25,1,25,2],[26,0,26,7],[19,1,19,2],[20,1,20,2],[21,1,21,2],[22,1,22,2],[15,1,15,2],[16,1,16,2],[17,1,17,2],[18,1,18,2],[12,0,12,1],[12,2,12,7],[13,0,14,0],[13,1,14,2],[13,3,13,6],[13,7,14,7],[4,3,4,4],[0,0,0,1],[1,0,1,7],[2,0,2,7],[3,0,3,1],[3,2,3,7],[4,5,4,7],[4,0,5,0],[4,1,5,1],[4,2,5,2]]}
["Applicant Name:",null,null,null,"Award Number:"]
["Budget Information - Non Construction Programs"]
["OMB Approval No. 0348-0044"]
["Section A - Budget Summary"]
[null,"Grant Program Function or Activity","Catalog of Federal Domestic Assistance Number","Estimated Unobligated Funds",null,"New or Revised Budget"]
[null,null,null,"Federal ","Non-Federal ","Federal","Non-Federal","Total"]
[null,"(a)","(b)","(c )","(d)","(e)","(f)","(g)"]
["1.","Budget period 1",null,null,null,{"$f":"D26-G8","v":0},{"$f":"'j. Cost Share'!D17","v":0},{"$f":"SUM(D8:G8)","v":0}]
["2.","Budget period 2",null,null,null,{"$f":"E26-G9","v":0},{"$f":"'j. Cost Share'!E17","v":0},{"$f":"SUM(D9:G9)","v":0}]
["3.","Budget period 3",null,null,null,{"$f":"F26-'j. Cost Share'!F17","v":0},{"$f":"'j. Cost Share'!F17","v":0},{"$f":"SUM(D10:G10)","v":0}]
["4.",{"$nulls":6},{"$f":"SUM(D11:G11)","v":0}]
["5.","Totals",null,{"$f":"SUM(D8:D11)","v":0},{"$f":"SUM(E8:E11)","v":0},{"$f":"SUM(F8:F11)","v":0},{"$f":"SUM(G8:G11)","v":0},{"$f":"SUM(H8:H11)","v":0}]
["Section B - Budget Categories"]
["6.","Object Class Categories",null,"Grant Program, Function or Activity",null,null,null,"Total (5)"]
[null,null,null,"Budget period 1","Budget period 2","Budget period 3","(4)"]
[null,"a.  Personnel",null,{"$f":"'Instructions and Summary'!B20","v":0},{"$f":"'Instructions and Summary'!C20","v":0},{"$f":"'Instructions and Summary'!D20","v":0},null,{"$f":"SUM(D16:G16)","v":0}]
[null,"b.  Fringe Benefits",null,{"$f":"'Instructions and Summary'!B21","v":0},{"$f":"'Instructions and Summary'!C21","v":0},{"$f":"'Instructions and Summary'!D21","v":0},null,0]
[null,"c.  Travel",null,{"$f":"'Instructions and Summary'!B22","v":0},{"$f":"'Instructions and Summary'!C22","v":0},{"$f":"'Instructions and Summary'!D22","v":0},null,0]
[null,"d.  Equipment",null,{"$f":"'Instructions and Summary'!B23","v":0},{"$f":"'Instructions and Summary'!C23","v":0},{"$f":"'Instructions and Summary'!D23","v":0},null,0]
[null,"e.  Supplies",null,{"$f":"'Instructions and Summary'!B24","v":0},{"$f":"'Instructions and Summary'!C24","v":0},{"$f":"'Instructions and Summary'!D24","v":0},null,0]
[null,"f.  Contractual",null,{"$f":"'Instructions and Summary'!B29","v":0},{"$f":"'Instructions and Summary'!C29","v":0},{"$f":"'Instructions and Summary'!D29","v":0},null,0]
[null,"g.  Construction",null,{"$f":"'Instructions and Summary'!B30","v":0},{"$f":"'Instructions and Summary'!C30","v":0},{"$f":"'Instructions and Summary'!D30","v":0},null,0]
[null,"h.  Other",null,{"$f":"'Instructions and Summary'!B31","v":0},{"$f":"'Instructions and Summary'!C31","v":0},{"$f":"'Instructions and Summary'!D31","v":0},null,0]
[null,"i.  Total Direct Charges (sum of 6a-6h)",null,{"$f":"SUM(D16:D23)","v":0},{"$f":"SUM(E16:E23)","v":0},{"$f":"SUM(F16:F23)","v":0},{"$f":"SUM(G16:G23)","v":0},0]
[null,"j.  Indirect Charges",null,{"$f":"'Instructions and Summary'!B33","v":0},{"$f":"'Instructions and Summary'!C33","v":0},{"$f":"'Instructions and Summary'!D33","v":0},null,0]
[null,"k.  Totals (sum of 6i-6j)",null,{"$f":"SUM(D24:D25)","v":0},{"$f":"SUM(E24:E25)","v":0},{"$f":"SUM(F24:F25)","v":0},{"$f":"SUM(G24:G25)","v":0},{"$f":"SUM(H24:H25)","v":0}]
[]
["7.","Program Income",{"$nulls":5},{"$f":"SUM(D28:G28)","v":0}]
[]
[{"$nulls":7},"SF-424A (Rev. 4-92) "]
["Previous Edition Usable",{"$nulls":5},"Prescribed by OMB Circular A-102"]
["Authorized for Local Reproduction"]
[]
["Section C - Non-Federal Resources"]
[null,"(a) Grant Program",null,null,"(b) Applicant","(c ) State","(d) Other Sources","(e) Totals"]
["8.","Budget period 1",{"$nulls":5},{"$f":"SUM(E36:G36)","v":0}]
["9.","Budget period 2",{"$nulls":5},{"$f":"SUM(E37:G37)","v":0}]
["10.","Budget period 3",{"$nulls":5},{"$f":"SUM(E38:G38)","v":0}]
["11.",{"$nulls":6},{"$f":"SUM(E39:G39)","v":0}]
["12.","Total (sum of lines 8 - 11)",null,null,{"$f":"SUM(E36:E39)","v":0},{"$f":"SUM(F36:F39)","v":0},{"$f":"SUM(G36:G39)","v":0},{"$f":"SUM(H36:H39)","v":0}]
["Section D - Forecasted Cash Needs"]
[null,null,null,"Total for 1st Year","1st Quarter","2nd Quarter","3rd Quarter","4th quarter"]
["13.","Federal",null,{"$f":"SUM(E43:H43)","v":0}]
["14.","Non-Federal",null,{"$f":"SUM(E44:H44)","v":0}]
["15.","Total (sum of lines 13 and 14)",null,{"$f":"SUM(D43:D44)","v":0},{"$f":"SUM(E43:E44)","v":0},{"$f":"SUM(F43:F44)","v":0},{"$f":"SUM(G43:G44)","v":0},{"$f":"SUM(H43:H44)","v":0}]
["Section E - Budget Estimates of Federal Funds Needed for Balance of the Project"]
["(a) Grant Program",null,null,null,"Future Funding Periods (Years)"]
[{"$nulls":4},"Budget period 1","Budget period 2","Budget period 3"]
["16."]
["17."]
["18."]
["19."]
["20.","Total (sum of lines 16-19)",null,null,{"$f":"SUM(E49:E52)","v":0},{"$f":"SUM(F49:F52)","v":0},{"$f":"SUM(G49:G52)","v":0},{"$f":"SUM(H49:H52)","v":0}]
["Section F - Other Budget Information"]
["21. Direct Charges",null,null,null,"22. Indirect Charges"]
[]
["23.  Remarks"]
[]
[]
[]
[{"$nulls":7},"SF-424A (Rev. 4-92) "]
["Previous Edition Usable",null,"              ",{"$nulls":4},"Prescribed by OMB Circular A-102"]
[null,null,"Authorized for Local Reproduction"]

{"sheet":"SF-424A Cost Categories","index":12,"n_rows":33,"n_cols":9,"rows_kept":33,"cut":false,"hidden":false,"merged":[[32,0,32,8],[24,1,24,2],[25,1,25,2],[26,1,26,2],[27,0,27,8],[28,1,28,2],[31,0,31,1],[31,2,31,5],[31,6,31,8],[23,1,23,2],[14,0,15,0],[14,1,15,2],[14,3,14,6],[14,8,15,8],[16,1,16,2],[17,1,17,2],[18,1,18,2],[19,1,19,2],[20,1,20,2],[21,1,21,2],[22,1,22,2],[13,0,13,1],[13,2,13,8],[0,0,0,1],[0,2,0,3],[0,5,0,6],[1,0,1,8],[2,0,2,8],[3,0,3,1],[3,2,3,8],[4,0,5,0],[4,1,5,1],[4,2,5,2],[4,3,4,4],[4,5,4,8]]}
["Applicant Name:",null,{"$f":"'Instructions and Summary'!B4","v":0},null,"Award Number:",{"$f":"'Instructions and Summary'!B3","v":0}]
["Budget Information - Non Construction Programs"]
["OMB Approval No. 0348-0044"]
["Section A - Budget Summary"]
[null,"Grant Program Function or Activity","Catalog of Federal Domestic Assistance Number","Estimated Unobligated Funds",null,"New or Revised Budget"]
[null,null,null,"Federal","Non-Federal ","Federal","Non-Federal",null,"Total"]
[null,"(a)","(b)","(c)","(d)","(e)","(f)",null,"(g)"]
["1.","Budget Period 1",null,null,null,{"$f":"'Instructions and Summary'!B34-G8","v":0},{"$f":"'j. Cost Share'!D17","v":0},null,{"$f":"ROUND(SUM(D8:G8),0)","v":0}]
["2.","Budget Period 2",null,null,null,{"$f":"'Instructions and Summary'!C34-G9","v":0},{"$f":"'j. Cost Share'!E17","v":0},null,{"$f":"ROUND(SUM(D9:G9),0)","v":0}]
["3.","Budget Period 3",null,null,null,{"$f":"'Instructions and Summary'!D34-G10","v":0},{"$f":"'j. Cost Share'!F17","v":0},null,{"$f":"ROUND(SUM(D10:G10),0)","v":0}]
["4.","Budget Period 4",null,null,null,{"$f":"'Instructions and Summary'!E34-G11","v":0},{"$f":"'j. Cost Share'!G17","v":0},null,{"$f":"ROUND(SUM(D11:G11),0)","v":0}]
["5.","Budget Period 5",null,null,null,{"$f":"'Instructions and Summary'!F34-G12","v":0},{"$f":"'j. Cost Share'!H17","v":0},null,{"$f":"ROUND(SUM(D12:G12),0)","v":0}]
["6.","Totals",null,null,null,{"$f":"ROUND(SUM(F8:F12),0)","v":0},{"$f":"ROUND(SUM(G8:G12),0)","v":0},null,{"$f":"ROUND(SUM(I8:I12),0)","v":0}]
["Section B - Budget Categories"]
["6.","Object Class Categories",null,"Grant Program, Function or Activity",{"$nulls":4},"Total (5)"]
[null,null,null,"Budget Period 1","Budget Period 2","Budget Period 3","Budget Period 4","Budget Period 5"]
[null,"a.  Personnel",null,{"$f":"'a. Personnel'!E34","v":0},{"$f":"'a. Personnel'!H34","v":0},{"$f":"'a. Personnel'!K34","v":0},{"$f":"'a. Personnel'!N34","v":0},{"$f":"'a. Personnel'!Q34","v":0},{"$f":"ROUND(SUM(D17:H17),0)","v":0}]
[null,"b.  Fringe Benefits",null,{"$f":"'b. Fringe'!D13","v":0},{"$f":"'b. Fringe'!G13","v":0},{"$f":"'b. Fringe'!J13","v":0},{"$f":"'b. Fringe'!M13","v":0},{"$f":"'b. Fringe'!P13","v":0},0]
[null,"c.  Travel",null,{"$f":"'c. Travel'!K14","v":0},{"$f":"'c. Travel'!K22","v":0},{"$f":"'c. Travel'!K30","v":0},{"$f":"'c. Travel'!K38","v":0},{"$f":"'c. Travel'!K46","v":0},0]
[null,"d.  Equipment",null,{"$f":"'d. Equipment'!E14","v":0},{"$f":"'d. Equipment'!E22","v":0},{"$f":"'d. Equipment'!E30","v":0},{"$f":"'d. Equipment'!E38","v":0},{"$f":"'d. Equipment'!E46","v":0},0]
[null,"e.  Supplies",null,{"$f":"'e. Supplies'!E15","v":0},{"$f":"'e. Supplies'!E25","v":0},{"$f":"'e. Supplies'!E35","v":0},{"$f":"'e. Supplies'!E45","v":0},{"$f":"'e. Supplies'!E55","v":0},0]
[null,"f.  Contractual",null,{"$f":"'f. Contractual'!D29","v":0},{"$f":"'f. Contractual'!E29","v":0},{"$f":"'f. Contractual'!F29","v":0},{"$f":"'f. Contractual'!G29","v":0},{"$f":"'f. Contractual'!H29","v":0},0]
[null,"g.  Construction",null,{"$f":"'g. Construction'!C15","v":0},{"$f":"'g. Construction'!C22","v":0},{"$f":"'g. Construction'!C29","v":0},{"$f":"'g. Construction'!C36","v":0},{"$f":"'g. Construction'!C43","v":0},0]
[null,"h.  Other",null,{"$f":"'h. Other'!C14","v":0},{"$f":"'h. Other'!C22","v":0},{"$f":"'h. Other'!C30","v":0},{"$f":"'h. Other'!C38","v":0},{"$f":"'h. Other'!C46","v":0},0]
[null,"i.  Total Direct Charges (sum of 6a-6h)",null,{"$f":"SUM(D17:D24)","v":0},{"$f":"SUM(E17:E24)","v":0},{"$f":"SUM(F17:F24)","v":0},{"$f":"SUM(G17:G24)","v":0},{"$f":"SUM(H17:H24)","v":0},0]
[null,"j.  Indirect Charges",null,{"$f":"'i. Indirect'!B16","v":0},{"$f":"'i. Indirect'!C16","v":0},{"$f":"'i. Indirect'!D16","v":0},{"$f":"'i. Indirect'!E16","v":0},{"$f":"'i. Indirect'!F16","v":0},0]
[null,"k.  Totals (sum of 6i-6j)",null,{"$f":"ROUND(SUM(D25:D26),0)","v":0},0,0,0,0,0]
[]
["7.","Program Income",{"$nulls":6},{"$f":"ROUND(SUM(D29:G29),0)","v":0}]
[]
[{"$nulls":8},"SF-424A (Rev. 4-92) "]
["Previous Edition Usable",{"$nulls":5},"Prescribed by OMB Circular A-102"]
["Authorized for Local Reproduction"]

{"sheet":"SF-424A Minus FFRDC","index":13,"n_rows":33,"n_cols":9,"rows_kept":33,"cut":false,"hidden":false,"merged":[[13,0,13,1],[13,2,13,8],[0,0,0,1],[0,2,0,3],[0,5,0,6],[1,0,1,8],[2,0,2,8],[3,0,3,1],[3,2,3,8],[4,0,5,0],[4,1,5,1],[4,2,5,2],[4,3,4,4],[4,5,4,8],[23,1,23,2],[14,0,15,0],[14,1,15,2],[14,3,14,6],[14,8,15,8],[16,1,16,2],[17,1,17,2],[18,1,18,2],[19,1,19,2],[20,1,20,2],[21,1,21,2],[22,1,22,2],[32,0,32,8],[24,1,24,2],[25,1,25,2],[26,1,26,2],[27,0,27,8],[28,1,28,2],[31,0,31,1],[31,2,31,5],[31,6,31,8]]}
["Applicant Name:",null,{"$f":"'Instructions and Summary'!B4","v":0},null,"Award Number:",{"$f":"'Instructions and Summary'!B3","v":0}]
["Budget Information - Non Construction Programs"]
["OMB Approval No. 0348-0044"]
["Section A - Budget Summary"]
[null,"Grant Program Function or Activity","Catalog of Federal Domestic Assistance Number","Estimated Unobligated Funds",null,"New or Revised Budget"]
[null,null,null,"Federal","Non-Federal ","Federal","Non-Federal",null,"Total"]
[null,"(a)","(b)","(c)","(d)","(e)","(f)",null,"(g)"]
["1.","Budget Period 1",null,null,null,{"$f":"'Instructions and Summary'!C12-'Instructions and Summary'!B28","v":0},{"$f":"'j. Cost Share'!D17","v":0},null,{"$f":"ROUND(SUM(D8:G8),0)","v":0}]
["2.","Budget Period 2",null,null,null,{"$f":"'Instructions and Summary'!C13-'Instructions and Summary'!C28","v":0},{"$f":"'j. Cost Share'!E17","v":0},null,{"$f":"ROUND(SUM(D9:G9),0)","v":0}]
["3.","Budget Period 3",null,null,null,{"$f":"'Instructions and Summary'!C14-'Instructions and Summary'!D28","v":0},{"$f":"'j. Cost Share'!F17","v":0},null,{"$f":"ROUND(SUM(D10:G10),0)","v":0}]
["4.","Budget Period 4",null,null,null,{"$f":"'Instructions and Summary'!C15-'Instructions and Summary'!E28","v":0},{"$f":"'j. Cost Share'!G17","v":0},null,{"$f":"ROUND(SUM(D11:G11),0)","v":0}]
["5.","Budget Period 5",null,null,null,{"$f":"'Instructions and Summary'!C16-'Instructions and Summary'!F28","v":0},{"$f":"'j. Cost Share'!H17","v":0},null,{"$f":"ROUND(SUM(D12:G12),0)","v":0}]
["6.","Totals",null,null,null,{"$f":"ROUND(SUM(F8:F12),0)","v":0},{"$f":"ROUND(SUM(G8:G12),0)","v":0},null,{"$f":"ROUND(SUM(I8:I12),0)","v":0}]
["Section B - Budget Categories"]
["6.","Object Class Categories",null,"Grant Program, Function or Activity",{"$nulls":4},"Total (5)"]
[null,null,null,"Budget Period 1","Budget Period 2","Budget Period 3","Budget Period 4","Budget Period 5"]
[null,"a.  Personnel",null,{"$f":"'a. Personnel'!E34","v":0},{"$f":"'a. Personnel'!H34","v":0},{"$f":"'a. Personnel'!K34","v":0},{"$f":"'a. Personnel'!N34","v":0},{"$f":"'a. Personnel'!Q34","v":0},{"$f":"ROUND(SUM(D17:H17),0)","v":0}]
[null,"b.  Fringe Benefits",null,{"$f":"'b. Fringe'!D13","v":0},{"$f":"'b. Fringe'!G13","v":0},{"$f":"'b. Fringe'!J13","v":0},{"$f":"'b. Fringe'!M13","v":0},{"$f":"'b. Fringe'!P13","v":0},0]
[null,"c.  Travel",null,{"$f":"'c. Travel'!K14","v":0},{"$f":"'c. Travel'!K22","v":0},{"$f":"'c. Travel'!K30","v":0},{"$f":"'c. Travel'!K38","v":0},{"$f":"'c. Travel'!K46","v":0},0]
[null,"d.  Equipment",null,{"$f":"'d. Equipment'!E14","v":0},{"$f":"'d. Equipment'!E22","v":0},{"$f":"'d. Equipment'!E30","v":0},{"$f":"'d. Equipment'!E38","v":0},{"$f":"'d. Equipment'!E46","v":0},0]
[null,"e.  Supplies",null,{"$f":"'e. Supplies'!E15","v":0},{"$f":"'e. Supplies'!E25","v":0},{"$f":"'e. Supplies'!E35","v":0},{"$f":"'e. Supplies'!E45","v":0},{"$f":"'e. Supplies'!E55","v":0},0]
[null,"f.  Contractual",null,{"$f":"'f. Contractual'!D29-'f. Contractual'!D27","v":0},{"$f":"'f. Contractual'!E29-'f. Contractual'!E27","v":0},{"$f":"'f. Contractual'!F29-'f. Contractual'!F27","v":0},{"$f":"'f. Contractual'!G29-'f. Contractual'!G27","v":0},{"$f":"'f. Contractual'!H29-'f. Contractual'!H27","v":0},0]
[null,"g.  Construction",null,{"$f":"'g. Construction'!C15","v":0},{"$f":"'g. Construction'!C22","v":0},{"$f":"'g. Construction'!C29","v":0},{"$f":"'g. Construction'!C36","v":0},{"$f":"'g. Construction'!C43","v":0},0]
[null,"h.  Other",null,{"$f":"'h. Other'!C14","v":0},{"$f":"'h. Other'!C22","v":0},{"$f":"'h. Other'!C30","v":0},{"$f":"'h. Other'!C38","v":0},{"$f":"'h. Other'!C46","v":0},0]
[null,"i.  Total Direct Charges (sum of 6a-6h)",null,{"$f":"SUM(D17:D24)","v":0},{"$f":"SUM(E17:E24)","v":0},{"$f":"SUM(F17:F24)","v":0},{"$f":"SUM(G17:G24)","v":0},{"$f":"SUM(H17:H24)","v":0},0]
[null,"j.  Indirect Charges",null,{"$f":"'i. Indirect'!B16","v":0},{"$f":"'i. Indirect'!C16","v":0},{"$f":"'i. Indirect'!D16","v":0},{"$f":"'i. Indirect'!E16","v":0},{"$f":"'i. Indirect'!F16","v":0},0]
[null,"k.  Totals (sum of 6i-6j)",null,{"$f":"ROUND(SUM(D25:D26),0)","v":0},0,0,0,0,0]
[]
["7.","Program Income",{"$nulls":6},{"$f":"ROUND(SUM(D29:G29),0)","v":0}]
[]
[{"$nulls":8},"SF-424A (Rev. 4-92) "]
["Previous Edition Usable",{"$nulls":5},"Prescribed by OMB Circular A-102"]
["Authorized for Local Reproduction"]